bitfinex/quotes_SOLUSD_20240716
["timestamp","ask_amount","ask_price","bid_price","bid_amount"]
[1721136420285,7.96502476,156.94,156.9,6.3733]
[1721136420507,6.3719,156.94,156.9,6.3733]
[1721136420672,6.3715,156.95,156.9,6.3733]
[1721136420873,1.59313426,156.94,156.91,6.373]
[1721136421382,7.96523426,156.94,156.89,15.934]
[1721136421903,6.3721,156.94,156.89,15.934]
[1721136422275,6.3715,156.95,156.9,6.3732]
[1721136422496,1.59312574,156.94,156.91,6.3727]
[1721136422806,1.59307425,156.95,156.92,6.3726]
[1721136424100,1.59307425,156.95,156.94,6.3718]
[1721136424288,1.59304227,157.01,156.96,15.9276]
[1721136424483,1.59304227,157.01,156.98,6.3698]
[1721136424906,6.3707,156.97,156.93,15.93]
[1721136425205,15.63,156.95,156.9,15.9329]
[1721136425387,1.59312521,156.94,156.91,6.373]
[1721136425989,6.3724,156.93,156.88,15.9704]
[1721136426313,6.3741,156.89,156.84,15.9392]
[1721136426486,1.59376153,156.88,156.84,15.9392]
[1721136427213,15.63,156.87,156.84,22.3149]
[1721136427504,1.5938717,156.86,156.84,22.3149]
[1721136427705,17.2238717,156.86,156.84,15.9392]
[1721136427909,1.59399546,156.85,156.84,15.9392]
[1721136429206,1.5939858,156.9,156.87,6.3743]
[1721136429385,1.59372213,156.89,156.87,6.3743]
[1721136429588,1.59372213,156.89,156.83,31.5703]
[1721136429806,1.59388473,156.91,156.85,15.63]
[1721136429994,15.63,156.9,156.87,6.3745]
[1721136430181,1.59388473,156.91,156.85,31.5678]
[1721136430381,1.59388473,156.91,156.85,15.9378]
[1721136430601,7.96718473,156.91,156.86,6.3748]
[1721136431397,1.59388473,156.91,156.85,15.9378]
[1721136431608,1.59388473,156.91,156.88,6.374]
[1721136431906,7.96621738,156.92,156.88,6.374]
[1721136432284,15.63,156.91,156.88,6.374]
[1721136432486,1.59351933,156.92,156.84,6.6164]
[1721136432789,15.63,156.93,156.9,22.3065]
[1721136432991,15.63,156.91,156.86,6.375]
[1721136433193,1.59366059,156.9,156.86,6.375]
[1721136433396,1.59363025,156.93,156.85,15.63]
[1721136433591,15.63,156.9,156.85,15.63]
[1721136433788,1.59362984,156.89,156.86,15.9368]
[1721136434386,1.59362984,156.89,156.85,6.3754]
[1721136435021,1.59362984,156.89,156.86,6.3748]
[1721136435314,1.59368733,156.93,156.86,6.3748]
[1721136435610,6.3734,156.91,156.86,6.3748]
[1721136435913,1.59369145,156.9,156.87,6.3747]
[1721136436088,1.5936785,156.89,156.87,6.3747]
[1721136436485,10.0,156.94,156.87,15.9357]
[1721136436685,26.2955,156.96,156.87,15.9357]
[1721136436893,6.3725,156.93,156.88,6.3739]
[1721136437199,1.59352842,156.92,156.88,6.3739]
[1721136437387,1.59352842,156.92,156.89,6.3736]
[1721136437588,1.59352842,156.92,156.87,15.9357]
[1721136438110,6.373,156.91,156.87,22.3103]
[1721136438309,1.59356812,156.9,156.87,15.9357]
[1721136438509,6.3728,156.92,156.87,22.3103]
[1721136438809,6.3728,156.92,156.88,6.3742]
[1721136439014,1.59339459,156.94,156.9,6.3734]
[1721136439305,1.59339459,156.94,156.9,6.3733]
[1721136439997,1.59339459,156.94,156.89,15.934]
[1721136441013,6.3723,156.93,156.89,15.934]
[1721136441307,1.59341005,156.94,156.92,6.3725]
[1721136442220,1.59319324,156.95,156.92,6.3725]
[1721136442411,15.63,156.95,156.92,6.3725]
[1721136442640,1.59306674,156.94,156.92,6.3725]
[1721136442791,1.59306548,156.95,156.92,6.3725]
[1721136443121,6.3721,156.94,156.89,6.3738]
[1721136443295,1.59328602,156.93,156.89,6.3738]
[1721136443796,1.59325038,156.92,156.88,22.3093]
[1721136444006,6.3731,156.91,156.88,15.9351]
[1721136444206,1.5935116,156.9,156.88,15.9351]
[1721136444702,1.59354244,156.91,156.88,22.3093]
[1721136444925,1.59354244,156.91,156.89,6.3738]
[1721136445222,1.59343927,156.92,156.9,6.3734]
[1721136445423,1.59343927,156.92,156.88,15.9351]
[1721136445424,1.59343927,156.92,156.89,6.3738]
[1721136445734,6.3737,156.9,156.86,6.375]
[1721136445903,1.59369402,156.89,156.86,6.375]
[1721136446103,6.3731,156.91,156.86,6.375]
[1721136446316,1.59356236,156.9,156.87,6.3746]
[1721136446825,15.0988,156.93,156.86,6.375]
[1721136446826,1.59356169,156.89,156.86,6.375]
[1721136446997,6.3731,156.91,156.87,6.3744]
[1721136447412,1.59355958,156.9,156.87,6.3744]
[1721136447809,1.59359294,156.89,156.86,6.3749]
[1721136448921,1.59361707,156.88,156.85,15.9384]
[1721136449126,1.59385125,156.87,156.8,6.3774]
[1721136449326,15.63,156.82,156.79,23.1638054]
[1721136449639,17.22425325,156.81,156.79,0.8419054]
[1721136449924,6.3768,156.82,156.79,0.8419054]
[1721136450227,1.59442154,156.81,156.79,16.7867054]
[1721136450722,1.5944844,156.84,156.79,16.7867054]
[1721136450920,15.63,156.83,156.8,6.3774]
[1721136451124,1.59433919,156.82,156.8,6.3774]
[1721136451303,1.59433919,156.82,156.79,16.7867054]
[1721136451926,1.59433919,156.82,156.79,23.1645054]
[1721136452226,1.59436561,156.83,156.8,6.3775]
[1721136452415,1.59434088,156.82,156.8,6.3775]
[1721136452801,1.59429755,156.84,156.79,16.7867054]
[1721136453317,1.5942183,156.87,156.8,6.3774]
[1721136453710,6.3756,156.85,156.8,6.3774]
[1721136453941,1.59414633,156.84,156.81,6.377]
[1721136454137,1.59414633,156.84,156.8,6.3775]
[1721136454352,1.59429306,156.83,156.79,0.8419054]
[1721136454523,6.3772,156.81,156.79,0.8419054]
[1721136454841,7.97201461,156.8,156.79,0.8419054]
[1721136457552,1.59451461,156.8,156.79,0.8419054]
[1721136457932,7.97201461,156.8,156.79,0.8419054]
[1721136458444,6.3775,156.8,156.79,0.8419054]
[1721136458953,7.97223771,156.8,156.79,0.8419054]
[1721136459824,6.3775,156.8,156.79,0.8419054]
[1721136460029,7.97229683,156.8,156.79,0.8419054]
[1721136461058,6.3775,156.8,156.79,0.8419054]
[1721136461223,7.97230586,156.8,156.79,0.8419054]
[1721136461822,1.59480586,156.8,156.79,0.8419054]
[1721136462025,6.3775,156.8,156.79,0.8419054]
[1721136463058,6.3774,156.81,156.79,0.8419054]
[1721136463256,1.59464623,156.8,156.79,0.8419054]
[1721136463949,1.5946458,156.82,156.79,0.8419054]
[1721136464125,7.9714458,156.82,156.79,0.8419054]
[1721136464330,7.97168568,156.81,156.79,0.8419054]
[1721136464650,6.3766,156.83,156.79,7.2194054]
[1721136464944,1.59426365,156.82,156.79,7.2194054]
[1721136465165,7.97106365,156.82,156.79,0.8419054]
[1721136465363,6.3772,156.81,156.79,0.8419054]
[1721136466226,1.5944258,156.8,156.79,0.8419054]
[1721136466654,6.3774,156.81,156.79,0.8419054]
[1721136466862,1.59453152,156.8,156.79,0.8419054]
[1721136467356,6.3764,156.83,156.79,0.8419054]
[1721136467647,1.59436999,156.82,156.79,0.8419054]
[1721136467852,1.59423414,156.87,156.82,15.9417]
[1721136468160,7.96923414,156.87,156.82,15.9417]
[1721136468831,1.59393188,156.86,156.82,15.9417]
[1721136469039,1.59393188,156.86,156.83,6.3762]
[1721136469371,7.96903188,156.86,156.82,15.9417]
[1721136469664,6.3761,156.84,156.79,0.8419054]
[1721136469969,7.96958551,156.85,156.8,15.9435]
[1721136470144,6.3756,156.85,156.81,45.0]
[1721136470852,1.5940341,156.84,156.79,7.2195054]
[1721136471163,1.59419817,156.87,156.79,7.2195054]
[1721136471538,6.376,156.84,156.79,7.2195054]
[1721136471738,1.59421198,156.83,156.79,7.2195054]
[1721136472253,1.59421198,156.83,156.8,6.3774]
[1721136472458,1.59423333,156.82,156.79,7.2197054]
[1721136473541,6.3764,156.83,156.79,7.2197054]
[1721136473745,1.59428855,156.82,156.79,7.2197054]
[1721136473942,6.3756,156.85,156.81,6.377]
[1721136474140,1.59421985,156.84,156.81,6.377]
[1721136474354,1.59416617,156.87,156.83,6.376]
[1721136474538,1.59416617,156.87,156.82,6.3766]
[1721136474861,6.3755,156.85,156.81,22.319]
[1721136475171,7.97008172,156.84,156.81,15.942]
[1721136475350,6.376,156.84,156.81,15.942]
[1721136475666,6.3756,156.85,156.81,15.942]
[1721136475869,1.59408072,156.84,156.81,15.942]
[1721136476060,1.59408072,156.84,156.81,22.319]
[1721136477449,6.3756,156.85,156.81,22.319]
[1721136478074,7.96997832,156.84,156.79,0.8419054]
[1721136478451,6.3759,156.84,156.79,0.8419054]
[1721136478750,6.3759,156.84,156.8,6.3774]
[1721136478950,6.3756,156.85,156.81,6.3771]
[1721136479151,1.59425383,156.84,156.81,6.3771]
[1721136479977,6.3751,156.86,156.82,6.3766]
[1721136480197,1.59408572,156.85,156.8,15.9434]
[1721136480471,6.3759,156.84,156.8,22.3208]
[1721136480678,25.9373,156.87,156.79,0.8419054]
[1721136480857,6.3765,156.83,156.79,0.8419054]
[1721136481044,7.97110331,156.82,156.79,0.8419054]
[1721136481245,1.59440331,156.82,156.79,7.2198054]
[1721136481477,1.59440331,156.82,156.79,0.8419054]
[1721136481666,6.3775,156.8,156.79,0.8419054]
[1721136481975,1.59440331,156.82,156.79,0.8419054]
[1721136482170,6.3775,156.8,156.79,0.8419054]
[1721136482353,7.97178859,156.81,156.79,0.8419054]
[1721136482552,1.59459001,156.8,156.79,0.8419054]
[1721136483351,6.3764,156.83,156.79,7.2198054]
[1721136483557,1.59440087,156.82,156.79,7.2198054]
[1721136484876,6.376,156.84,156.8,6.3775]
[1721136485198,15.3892,156.85,156.82,6.3764]
[1721136485199,1.59423042,156.85,156.82,6.3764]
[1721136485395,1.59423042,156.85,156.82,15.9409]
[1721136485569,6.375,156.87,156.82,22.3174]
[1721136485765,7.96929217,156.86,156.82,15.9409]
[1721136485972,6.3751,156.86,156.82,22.3173]
[1721136486172,7.9696186,156.85,156.81,6.377]
[1721136486371,6.3757,156.85,156.8,6.3774]
[1721136486592,6.376,156.84,156.8,6.3774]
[1721136487193,1.59407228,156.88,156.79,16.7861054]
[1721136487194,1.59407228,156.88,156.81,15.9424]
[1721136487371,1.59407228,156.88,156.81,60.9424]
[1721136487572,6.3751,156.86,156.82,6.3766]
[1721136487784,6.3747,156.87,156.83,6.3762]
[1721136487989,7.96861774,156.87,156.83,6.3762]
[1721136488188,6.3747,156.87,156.83,6.3762]
[1721136488575,7.96899296,156.86,156.81,60.9424]
[1721136488802,1.59391754,156.89,156.81,60.9424]
[1721136489087,6.3756,156.85,156.81,67.3192]
[1721136489298,6.3756,156.85,156.81,22.3192]
[1721136489595,6.376,156.84,156.81,15.9424]
[1721136489771,6.3764,156.83,156.79,7.2198054]
[1721136489968,1.59422393,156.82,156.79,0.8419054]
[1721136490167,6.3772,156.81,156.79,0.8419054]
[1721136490576,6.3768,156.82,156.79,0.8419054]
[1721136490779,1.59439405,156.81,156.79,0.8419054]
[1721136490981,7.97159405,156.81,156.79,0.8419054]
[1721136491277,6.3772,156.81,156.79,0.8419054]
[1721136491496,7.97195243,156.8,156.79,0.8419054]
[1721136491713,6.3775,156.8,156.79,0.8419054]
[1721136492076,1.59458604,156.83,156.79,0.8419054]
[1721136492295,1.59447529,156.82,156.79,0.8419054]
[1721136492492,6.3774,156.81,156.79,0.8419054]
[1721136492693,7.97201629,156.8,156.79,0.8419054]
[1721136492901,6.3775,156.8,156.79,0.8419054]
[1721136494211,6.3772,156.81,156.79,0.8419054]
[1721136494383,6.3768,156.82,156.79,0.8419054]
[1721136494691,1.5944506,156.81,156.79,0.8419054]
[1721136494895,7.97085307,156.83,156.79,0.8419054]
[1721136495094,6.3764,156.83,156.79,0.8419054]
[1721136495296,6.3764,156.83,156.79,7.2198054]
[1721136495501,1.59433509,156.86,156.79,16.7863054]
[1721136495680,1.59418705,156.85,156.79,16.7863054]
[1721136495878,6.3766,156.83,156.79,16.7863054]
[1721136496515,6.3759,156.84,156.79,16.7863054]
[1721136496713,6.3759,156.84,156.79,23.1639054]
[1721136496883,6.3759,156.84,156.79,23.1641054]
[1721136497081,6.3765,156.83,156.79,23.1641054]
[1721136497711,6.376,156.84,156.79,23.1641054]
[1721136497909,6.376,156.84,156.8,6.3772]
[1721136498115,6.376,156.84,156.8,7.60692476]
[1721136498284,6.3756,156.85,156.81,6.3771]
[1721136498618,6.3756,156.85,156.82,1.22956792]
[1721136499413,6.3751,156.86,156.82,7.60626792]
[1721136499598,6.3755,156.85,156.82,1.22956792]
[1721136499809,6.3755,156.85,156.81,22.3194]
[1721136499996,6.3752,156.86,156.81,22.3194]
[1721136500197,6.3752,156.86,156.82,6.3766]
[1721136500385,1.59396644,156.89,156.81,15.9424]
[1721136500582,6.3752,156.86,156.82,6.3764]
[1721136500890,6.3748,156.87,156.83,6.3763]
[1721136501091,6.3752,156.86,156.82,6.3766]
[1721136501293,6.3752,156.86,156.81,22.3194]
[1721136501487,6.3752,156.86,156.82,45.0]
[1721136501701,6.3756,156.85,156.82,45.0]
[1721136502099,6.3752,156.86,156.82,45.0]
[1721136502687,6.3757,156.85,156.81,15.9424]
[1721136502887,6.3757,156.85,156.81,22.3193]
[1721136503094,1.59384938,156.89,156.8,16.1577]
[1721136503298,6.3734,156.9,156.86,6.3749]
[1721136503510,6.3739,156.89,156.85,22.3138]
[1721136504190,6.3732,156.91,156.85,15.9384]
[1721136504387,6.3732,156.91,156.87,6.3745]
[1721136504610,7.96698813,156.9,156.86,0.17]
[1721136504787,1.59350424,156.93,156.85,15.9384]
[1721136504983,6.374,156.89,156.85,15.9384]
[1721136505396,6.3736,156.9,156.85,22.3136]
[1721136505615,6.3736,156.9,156.86,6.375]
[1721136505920,6.3731,156.91,156.87,6.3746]
[1721136509512,6.3719,156.94,156.89,22.3081]
[1721136509736,6.3719,156.94,156.9,7.22128563]
[1721136509900,6.373,156.92,156.88,16.2752]
[1721136510098,6.373,156.92,156.89,45.0]
[1721136510291,6.3732,156.91,156.88,15.9352]
[1721136510630,6.3725,156.93,156.89,6.3738]
[1721136510924,1.59312162,156.95,156.88,22.3093]
[1721136511224,1.59312162,156.95,156.88,15.9352]
[1721136511428,1.59312162,156.95,156.89,45.17]
[1721136511917,1.59306704,156.96,156.89,45.17]
[1721136512220,1.59306714,156.95,156.89,45.17]
[1721136512419,6.3725,156.93,156.89,51.5438]
[1721136512800,6.3719,156.94,156.9,6.3734]
[1721136514827,6.3719,156.94,156.89,51.5437]
[1721136515424,7.96439719,156.96,156.9,15.9333]
[1721136515608,1.59299719,156.96,156.91,6.3729]
[1721136515811,6.3713,156.96,156.92,15.9313]
[1721136516013,6.3715,156.95,156.9,6.3732]
[1721136516210,6.3715,156.95,156.91,6.373]
[1721136516622,6.3705,156.98,156.92,16.28935772]
[1721136516811,6.3705,156.98,156.94,6.3717]
[1721136517008,6.3705,156.98,156.93,67.3025]
[1721136517207,6.3705,156.98,156.94,6.3718]
[1721136518220,6.3705,156.98,156.94,7.64555239]
[1721136518734,6.3708,156.97,156.93,67.3025]
[1721136518927,6.371,156.96,156.93,15.9304]
[1721136519505,6.3707,156.97,156.93,22.3026]
[1721136519733,1.59281241,157.0,156.93,15.9304]
[1721136519936,6.3707,156.97,156.93,22.3023]
[1721136520834,6.3703,156.98,156.94,6.3718]
[1721136521327,6.3698,156.99,156.95,6.3713]
[1721136521535,6.3698,156.99,156.94,7.64578857]
[1721136521711,15.9228,157.01,156.94,6.3717]
[1721136521712,7.96295929,156.98,156.94,6.3717]
[1721136522409,6.3703,156.98,156.94,6.3717]
[1721136522619,6.3703,156.98,156.95,0.71266455]
[1721136522832,6.3703,156.98,156.94,6.3717]
[1721136523619,6.3703,156.98,156.95,1.27413463]
[1721136523935,6.3699,156.99,156.95,6.3714]
[1721136524114,6.3699,156.99,156.94,6.3717]
[1721136524313,6.3699,156.99,156.95,6.3713]
[1721136524715,6.3695,157.0,156.96,6.3709]
[1721136525737,6.3698,156.99,156.95,22.2996]
[1721136526040,16.5647,157.03,156.92,15.1851]
[1721136526223,77.0148,157.02,156.92,15.0151]
[1721136526425,25.925,156.99,156.89,22.3081]
[1721136526738,32.0421,156.97,156.89,15.9343]
[1721136527035,6.3727,156.92,156.88,22.359]
[1721136527246,7.96647861,156.91,156.86,15.937]
[1721136527408,6.3732,156.91,156.86,15.937]
[1721136527825,6.3732,156.91,156.87,6.3746]
[1721136528029,6.3727,156.92,156.88,6.3742]
[1721136528239,6.3724,156.93,156.89,6.3738]
[1721136528413,7.96597744,156.92,156.88,6.3742]
[1721136528735,1.59341338,156.91,156.88,6.3742]
[1721136529611,6.3723,156.93,156.88,6.3742]
[1721136529812,1.59337635,156.92,156.89,6.3738]
[1721136530241,1.59337635,156.92,156.88,6.3741]
[1721136530617,1.59337635,156.92,156.89,6.3738]
[1721136531038,1.59334501,156.93,156.89,6.3738]
[1721136531241,1.59334702,156.92,156.89,6.3738]
[1721136531442,6.3719,156.94,156.88,15.9354]
[1721136531443,1.59334763,156.93,156.9,6.3734]
[1721136532326,1.59330779,156.92,156.9,6.3734]
[1721136532527,1.59330779,156.93,156.9,6.3734]
[1721136532717,1.59335571,156.92,156.9,6.3734]
[1721136533114,1.59334138,156.93,156.9,6.3734]
[1721136534645,1.59334138,156.93,156.91,6.373]
[1721136534849,1.59325122,156.94,156.91,6.373]
[1721136535432,1.59325122,156.94,156.9,22.3066]
[1721136535433,7.96515122,156.94,156.9,22.3066]
[1721136535845,1.59325487,156.93,156.9,22.3066]
[1721136536218,1.59325442,156.92,156.89,6.3738]
[1721136536544,7.96595442,156.92,156.88,6.374]
[1721136536850,6.3722,156.93,156.89,6.3737]
[1721136537159,1.59336378,156.92,156.89,6.3737]
[1721136537334,1.59336378,156.92,156.87,15.936]
[1721136537726,6.3733,156.91,156.87,15.936]
[1721136537928,7.9671405,156.9,156.86,6.3748]
[1721136538135,1.59367933,156.89,156.86,6.3748]
[1721136538332,1.59367933,156.89,156.84,15.9389]
[1721136538333,6.3743,156.88,156.84,15.9389]
[1721136538546,1.59381561,156.87,156.84,22.3147]
[1721136539322,1.59381561,156.87,156.85,6.3754]
[1721136539525,1.59388171,156.88,156.85,6.3754]
[1721136539953,7.96818171,156.88,156.84,22.3147]
[1721136540159,1.59388171,156.88,156.82,31.8836]
[1721136540329,6.5758,156.92,156.82,31.8836]
[1721136540330,6.3742,156.89,156.82,31.8836]
[1721136540532,1.59373533,156.88,156.85,6.3751]
[1721136541447,6.3736,156.9,156.86,6.375]
[1721136541939,1.59371626,156.89,156.85,22.3137]
[1721136543032,1.59371626,156.89,156.86,6.375]
[1721136543557,1.59371626,156.89,156.85,22.3137]
[1721136544934,7.96725337,156.9,156.86,6.3749]
[1721136545135,1.59358308,156.89,156.86,6.3749]
[1721136545445,7.96718435,156.9,156.86,6.3749]
[1721136546047,7.96718435,156.9,156.86,7.51572313]
[1721136546247,1.59350086,156.92,156.87,15.936]
[1721136546453,20.93620683,156.96,156.87,15.936]
[1721136546454,1.5932582,156.95,156.87,15.936]
[1721136546759,1.5932582,156.95,156.88,6.3741]
[1721136547250,6.3723,156.93,156.89,6.3737]
[1721136548454,6.3719,156.94,156.89,6.3737]
[1721136548658,7.96555586,156.93,156.89,6.3737]
[1721136548862,1.59327403,156.92,156.89,6.3737]
[1721136549233,1.59327403,156.92,156.88,6.3741]
[1721136549848,6.3723,156.93,156.88,6.3741]
[1721136550138,1.59325655,156.92,156.86,6.3747]
[1721136550349,6.3731,156.91,156.85,15.7638]
[1721136550551,7.96615655,156.92,156.87,6.3743]
[1721136550738,7.96615655,156.92,156.88,6.374]
[1721136551062,6.3723,156.93,156.89,6.3738]
[1721136551365,7.96566389,156.93,156.89,6.3737]
[1721136551556,1.59336389,156.92,156.89,6.3737]
[1721136551868,6.3731,156.91,156.88,15.9354]
[1721136552658,6.3737,156.9,156.86,45.0]
[1721136552855,6.3731,156.91,156.86,51.3748]
[1721136553245,6.3731,156.91,156.87,7.6493248]
[1721136553449,6.3731,156.91,156.87,6.3746]
[1721136553657,15.93,156.94,156.85,6.3754]
[1721136553658,6.3742,156.89,156.85,6.3754]
[1721136553831,1.59370963,156.88,156.85,6.3754]
[1721136554251,1.59370963,156.88,156.82,47.8247]
[1721136554252,1.59370963,156.88,156.82,15.9411]
[1721136554631,6.376,156.84,156.8,6.3772]
[1721136554834,7.97045614,156.83,156.79,16.7863054]
[1721136555058,1.59432195,156.82,156.79,16.7863054]
[1721136555290,1.59432195,156.82,156.79,23.1641054]
[1721136555451,7.97112195,156.82,156.79,0.8419054]
[1721136555635,1.59448322,156.81,156.79,0.8419054]
[1721136556669,1.59448322,156.81,156.79,7.2196054]
[1721136556963,1.5944326,156.82,156.79,7.2196054]
[1721136558563,1.5944326,156.82,156.8,6.3775]
[1721136558770,1.59441815,156.83,156.8,6.3775]
[1721136558964,1.59439642,156.82,156.8,6.3775]
[1721136559177,10.17,156.87,156.81,6.3768]
[1721136559178,7.969656,156.86,156.81,6.3768]
[1721136559351,1.59417348,156.85,156.81,6.3768]
[1721136559666,6.376,156.84,156.8,22.3204]
[1721136559856,1.59425879,156.83,156.8,22.3204]
[1721136560056,6.3756,156.85,156.81,6.377]
[1721136560281,1.59421448,156.85,156.8,15.943]
[1721136560472,7.96971448,156.85,156.8,15.943]
[1721136560659,7.96971448,156.85,156.8,22.3202]
[1721136561058,7.96971448,156.85,156.81,6.3771]
[1721136561259,6.3752,156.86,156.82,6.3766]
[1721136561676,1.59404134,156.85,156.82,6.3766]
[1721136561857,1.59404134,156.85,156.8,15.943]
[1721136562066,6.3761,156.84,156.8,15.943]
[1721136562266,1.59422482,156.83,156.8,15.943]
[1721136562484,1.59422482,156.83,156.8,22.3205]
[1721136562655,6.3761,156.84,156.81,0.3214568]
[1721136562980,6.3761,156.84,156.8,22.3205]
[1721136562981,6.3756,156.85,156.8,22.3205]
[1721136563191,6.3752,156.86,156.81,6.377]
[1721136563370,7.96924043,156.86,156.82,6.3766]
[1721136563664,7.96924043,156.86,156.8,15.943]
[1721136563665,1.59404043,156.85,156.8,15.943]
[1721136563987,1.59404043,156.85,156.82,6.3767]
[1721136564375,1.59404043,156.85,156.8,15.943]
[1721136564582,1.59407196,156.88,156.8,15.943]
[1721136565373,6.376,156.84,156.8,22.3205]
[1721136566653,6.3756,156.85,156.81,7.65233948]
[1721136567073,6.3756,156.85,156.81,6.3771]
[1721136567463,6.3756,156.85,156.81,7.65233631]
[1721136568068,7.96867196,156.88,156.83,6.376]
[1721136568281,7.96880504,156.87,156.83,1.27512403]
[1721136568486,1.59390504,156.87,156.82,15.9415]
[1721136568688,6.3749,156.87,156.83,6.3763]
[1721136568857,6.3751,156.86,156.82,23.59310793]
[1721136569285,6.3748,156.87,156.83,6.3763]
[1721136570094,6.3752,156.86,156.82,22.3182]
[1721136570382,6.3755,156.85,156.82,15.9415]
[1721136570897,6.3751,156.86,156.82,22.3181]
[1721136571064,6.3748,156.87,156.83,6.3763]
[1721136571690,6.3747,156.87,156.83,6.3761]
[1721136571896,6.3751,156.86,156.82,22.3181]
[1721136572185,6.3747,156.87,156.83,7.65124218]
[1721136572385,6.3743,156.88,156.84,6.3758]
[1721136572594,6.3726,156.93,156.88,6.3742]
[1721136572812,6.3743,156.88,156.84,6.3755]
[1721136572961,6.3743,156.88,156.83,67.316]
[1721136573358,6.3743,156.88,156.84,6.3758]
[1721136573594,6.3743,156.88,156.83,60.9398]
[1721136573896,6.3743,156.88,156.83,67.316]
[1721136574812,6.374,156.89,156.85,6.3754]
[1721136576513,6.3568,156.94,156.85,15.938]
[1721136576697,6.3736,156.9,156.86,6.375]
[1721136576899,6.3733,156.91,156.87,6.3744]
[1721136577096,7.96691609,156.9,156.86,6.3749]
[1721136577295,6.3746,156.88,156.83,51.3762]
[1721136577494,1.59370664,156.87,156.83,6.3762]
[1721136577717,6.375,156.87,156.82,22.3178]
[1721136578305,6.3756,156.85,156.79,31.8819054]
[1721136578502,7.96972406,156.85,156.79,31.8819054]
[1721136578694,6.3756,156.85,156.79,31.8819054]
[1721136578906,1.59411638,156.88,156.81,22.3191]
[1721136579418,6.3754,156.86,156.82,6.3767]
[1721136579629,25.9347,156.89,156.82,6.3767]
[1721136579630,1.59410322,156.85,156.82,6.3767]
[1721136579826,1.59410322,156.85,156.84,6.3759]
[1721136580015,1.59400649,156.87,156.83,15.9402]
[1721136580329,7.96890649,156.87,156.83,22.3163]
[1721136580500,7.96890649,156.87,156.83,15.9402]
[1721136580700,1.59400649,156.87,156.83,22.3162]
[1721136581318,6.3744,156.88,156.84,6.3757]
[1721136581646,6.3739,156.89,156.85,15.9383]
[1721136581846,7.9676583,156.89,156.85,15.9383]
[1721136582146,16.3568,156.94,156.86,6.3749]
[1721136582647,6.3568,156.94,156.87,6.3746]
[1721136582939,6.3732,156.91,156.86,7.64980896]
[1721136583140,1.59356165,156.9,156.86,6.375]
[1721136583321,6.3727,156.92,156.85,15.9383]
[1721136583522,6.3732,156.91,156.86,0.98854983]
[1721136583722,6.3732,156.91,156.86,6.3749]
[1721136584035,7.96611212,156.92,156.87,6.3744]
[1721136584831,6.373,156.91,156.87,6.3744]
[1721136585358,6.373,156.91,156.86,1.27474456]
[1721136585724,7.96603305,156.93,156.88,6.3742]
[1721136585920,1.59343305,156.93,156.89,1.27461154]
[1721136586230,6.3723,156.93,156.89,1.27461154]
[1721136586415,1.59323954,156.94,156.89,6.3738]
[1721136587343,1.59313529,156.97,156.89,15.9342]
[1721136587548,1.59313529,156.97,156.91,6.3729]
[1721136587549,6.3715,156.95,156.91,6.3729]
[1721136587840,1.59313529,156.97,156.92,6.3726]
[1721136587841,6.371,156.96,156.92,6.3726]
[1721136588061,6.371,156.96,156.92,7.64680388]
[1721136588726,6.3707,156.97,156.92,7.64680388]
[1721136589326,6.3707,156.97,156.93,6.3721]
[1721136589530,6.3702,156.98,156.94,7.6459176]
[1721136589849,6.3702,156.98,156.94,6.3717]
[1721136590427,6.3702,156.98,156.93,22.3023]
[1721136591042,6.371,156.96,156.91,22.4246]
[1721136591249,6.3705,156.98,156.92,46.44422296]
[1721136591431,6.3705,156.98,156.93,1.27409274]
[1721136591953,6.3705,156.98,156.94,6.3717]
[1721136592155,6.3705,156.98,156.95,1.27409184]
[1721136592357,1.5927787,157.0,156.96,1.27407533]
[1721136592524,6.3742,156.89,156.84,6.3758]
[1721136592726,17.52456244,156.93,156.83,38.852]
[1721136592941,6.3744,156.88,156.83,38.852]